[Event "26th Abu Dhabi Master 2019"]
[Site "Abu Dhabi"]
[Date "2019.08.08"]
[Round "7.29"]
[White "Agmanov, Zhandos"]
[Black "Kuybokarov, Temur"]
[Result "0-1"]
[ECO "C74"]
[WhiteElo "2402"]
[BlackElo "2511"]
[Annotator "ChessBase"]
[PlyCount "36"]
[EventDate "2019.08.02"]
[EventType "swiss"]
[EventCountry "UAE"]
[SourceTitle "playchess.com"]
[Source "ChessBase"]
[SourceQuality "1"]
[TimeControl "5400+30"]

1. e4 {[%emt 0:00:02]} e5 {[%emt 0:00:00]} 2. Nf3 {[%emt 0:00:45]} Nc6 {[%emt 0:00:04]} 3. Bb5 {[%emt 0:01:10]} a6 {[%emt 0:00:16]} 4. Ba4 {[%emt 0:00:07]} d6 {[%emt 0:00:28]} 5. c3 {[%emt 0:02:40]} f5 {[%emt 0:00:26]} 6. exf5 {[%emt 0:04:53]} Bxf5 {[%emt 0:00:08]} 7. O-O {[%emt 0:00:36]} Bd3 {[%emt 0:00:10]} 8. Re1 {[%emt 0:01:41]} Be7 {[%emt 0:00:13]} 9. Qb3 {[%emt 0:01:36]} Qc8 {[%emt 0:00:33]} 10. c4 {[%emt 0:00:22]} e4 {[%emt 0:03:45]} 11. Nd4 {[%emt 0:00:14]} Nf6 {[%emt 0:03:02]} 12. Nxc6 {[%emt 0:07:44]} bxc6 {[%emt 0:00:10]} 13. Bxc6+ {[%emt 0:00:09]} Kf7 {[%emt 0:09:29]} 14. c5+ {[%emt 0:51:58]} Kg6 {[%emt 0:07:19]} 15. Re3 {[%emt 0:08:57]} Qf5 {[%emt 0:02:09]} 16. Rg3+ {[%emt 0:05:12]} Ng4 {[%emt 0:00:42]} 17. Qd1 {[%emt 0:03:38]} Qxf2+ {[%emt 0:01:03]} 18. Kh1 {[%emt 0:00:01]} Qxg3 {[%emt 0:00:27]} 0-1

[Event "26th Abu Dhabi Master 2019"]
[Site "Abu Dhabi"]
[Date "2019.08.08"]
[Round "7.30"]
[White "Sindarov, Javokhir"]
[Black "Viani Antonio Dcunha"]
[Result "1-0"]
[ECO "C78"]
[WhiteElo "2479"]
[BlackElo "2371"]
[Annotator "ChessBase"]
[PlyCount "40"]
[EventDate "2019.08.02"]
[EventType "swiss"]
[EventCountry "UAE"]
[SourceTitle "playchess.com"]
[Source "ChessBase"]
[SourceQuality "1"]
[TimeControl "5400+30"]

1. e4 {[%emt 0:00:00]} e5 {[%emt 0:00:04]} 2. Nf3 {[%emt 0:00:00]} Nc6 {[%emt 0:00:19]} 3. Bb5 {[%emt 0:00:00]} a6 {[%emt 0:00:34]} 4. Ba4 {[%emt 0:00:00]} Nf6 {[%emt 0:00:41]} 5. O-O {[%emt 0:00:00]} Bc5 {[%emt 0:00:47]} 6. c3 {[%emt 0:19:45]} b5 {[%emt 0:00:41]} 7. Bb3 {[%emt 0:00:10]} d6 {[%emt 0:00:39]} 8. a4 {[%emt 0:00:51]} Bg4 {[%emt 0:03:35]} 9. h3 {[%emt 0:00:09]} Bh5 {[%emt 0:00:43]} 10. d3 {[%emt 0:00:27]} h6 {[%emt 0:11:36]} 11. Re1 {[%emt 0:11:14]} O-O {[%emt 0:02:33]} 12. Nbd2 {[%emt 0:00:35]} b4 {[%emt 0:11:25]} 13. a5 {[%emt 0:03:50]} Rb8 {[%emt 0:15:18]} 14. Bc4 {[%emt 0:00:47]} Qc8 {[%emt 0:05:17]} 15. Nf1 {[%emt 0:01:55]} bxc3 {[%emt 0:01:36]} 16. bxc3 {[%emt 0:00:05]} Ne7 {[%emt 0:10:32]} 17. Ng3 {[%emt 0:02:10]} Bg6 {[%emt 0:00:12]} 18. Qe2 {[%emt 0:01:07]} Ra8 {[%emt 0:06:29]} 19. Bd2 {[%emt 0:06:07]} Nc6 {[%emt 0:04:23]} 20. Kh1 {[%emt 0:07:13]} Kh7 {[%emt 0:00:24]} 1-0

[Event "26th Abu Dhabi Master 2019"]
[Site "Abu Dhabi"]
[Date "2019.08.08"]
[Round "7.31"]
[White "Akopian, Vladimir"]
[Black "Soumya, Swaminathan"]
[Result "1-0"]
[ECO "B31"]
[WhiteElo "2650"]
[BlackElo "2402"]
[Annotator "ChessBase"]
[PlyCount "101"]
[EventDate "2019.08.02"]
[EventType "swiss"]
[EventCountry "UAE"]
[SourceTitle "playchess.com"]
[Source "ChessBase"]
[SourceQuality "1"]
[TimeControl "5400+30"]

1. e4 {[%emt 0:00:00]} c5 {[%emt 0:00:00]} 2. Nf3 {[%emt 0:00:01]} Nc6 {[%emt 0:00:00]} 3. Bb5 {[%emt 0:00:12]} g6 {[%emt 0:00:00]} 4. O-O {[%emt 0:00:20]} Bg7 {[%emt 0:00:00]} 5. Nc3 {[%emt 0:00:16]} e5 {[%emt 0:00:42]} 6. Bc4 {[%emt 0:00:18]} h6 {[%emt 0:07:52]} 7. a3 {[%emt 0:00:54]} a6 {[%emt 0:05:04]} 8. b4 {[%emt 0:01:30]} b5 {[%emt 0:08:21]} 9. Bb3 {[%emt 0:19:49]} d6 {[%emt 0:04:58]} 10. d3 {[%emt 0:05:31]} Nge7 {[%emt 0:16:07]} 11. Nd5 {[%emt 0:00:25]} Bb7 {[%emt 0:04:58]} 12. c3 {[%emt 0:01:30]} Nxd5 {[%emt 0:05:33]} 13. Bxd5 {[%emt 0:01:23]} O-O {[%emt 0:01:56]} 14. Be3 {[%emt 0:03:17]} Qe7 {[%emt 0:00:55]} 15. h4 {[%emt 0:07:00]} Kh7 {[%emt 0:07:44]} 16. h5 {[%emt 0:01:01]} Nd8 {[%emt 0:05:05]} 17. c4 {[%emt 0:01:19]} Ne6 {[%emt 0:05:18]} 18. bxc5 {[%emt 0:13:06]} Nxc5 {[%emt 0:02:13]} 19. Bxc5 {[%emt 0:00:13]} dxc5 {[%emt 0:00:19]} 20. Rb1 {[%emt 0:01:41]} Rad8 {[%emt 0:03:27]} 21. Qc2 {[%emt 0:02:22]} Rd7 {[%emt 0:02:24]} 22. Rfc1 {[%emt 0:03:25]} Rc8 {[%emt 0:00:14]} 23. Qd2 {[%emt 0:02:16]} Qd8 {[%emt 0:02:22]} 24. g3 {[%emt 0:02:26]} Bf6 {[%emt 0:06:46]} 25. Kg2 {[%emt 0:02:02]} Bxd5 {[%emt 0:06:29]} 26. cxd5 {[%emt 0:00:22]} Bg5 {[%emt 0:01:45]} 27. hxg6+ {[%emt 0:04:01]} fxg6 {[%emt 0:00:03]} 28. Nxg5+ {[%emt 0:00:08]} Qxg5 {[%emt 0:00:02]} 29. f4 {[%emt 0:00:55]} Qf6 {[%emt 0:02:29]} 30. Qb2 {[%emt 0:03:46]} Re7 {[%emt 0:00:04]} 31. fxe5 {[%emt 0:00:14]} Rxe5 {[%emt 0:00:49]} 32. Rf1 {[%emt 0:00:16]} Qg7 {[%emt 0:00:43]} 33. Rf7 {[%emt 0:08:36]} Qxf7 {[%emt 0:00:05]} 34. Qxe5 {[%emt 0:00:04]} Rf8 {[%emt 0:00:24]} 35. Qf4 {[%emt 0:00:15]} Qe7 {[%emt 0:00:41]} 36. Qe3 {[%emt 0:01:34]} Qd6 {[%emt 0:01:12]} 37. Rc1 {[%emt 0:01:06]} Rc8 {[%emt 0:00:41]} 38. Rh1 {[%emt 0:05:27]} h5 {[%emt 0:00:02]} 39. g4 {[%emt 0:00:07]} Rg8 {[%emt 0:00:44]} 40. Qg3 {[%emt 0:01:04]} Qf6 {[%emt 0:00:11]} 41. e5 {[%emt 0:03:28]} Qg5 {[%emt 0:00:22]} 42. d6 {[%emt 0:00:10]} Qd2+ {[%emt 0:00:59]} 43. Kh3 {[%emt 0:00:14]} Rf8 {[%emt 0:00:52]} 44. gxh5 {[%emt 0:00:36]} g5 {[%emt 0:00:19]} 45. Rh2 {[%emt 0:03:21]} Qd1 {[%emt 0:00:23]} 46. Rf2 {[%emt 0:00:06]} Rxf2 {[%emt 0:00:46]} 47. Qxf2 {[%emt 0:00:05]} Qxd3+ {[%emt 0:00:06]} 48. Kg4 {[%emt 0:01:13]} c4 {[%emt 0:00:53]} 49. Qf7+ {[%emt 0:01:13]} Kh8 {[%emt 0:00:34]} 50. Qf6+ {[%emt 0:00:20]} Kh7 {[%emt 0:00:27]} 51. Qg6+ {[%emt 0:00:28]} 1-0

[Event "26th Abu Dhabi Master 2019"]
[Site "Abu Dhabi"]
[Date "2019.08.08"]
[Round "7.32"]
[White "Iniyan, P."]
[Black "Rakesh Kumar Jena"]
[Result "1-0"]
[ECO "B30"]
[WhiteElo "2524"]
[BlackElo "2395"]
[Annotator "ChessBase"]
[PlyCount "157"]
[EventDate "2019.08.02"]
[EventType "swiss"]
[EventCountry "UAE"]
[SourceTitle "playchess.com"]
[Source "ChessBase"]
[SourceQuality "1"]
[TimeControl "5400+30"]

1. e4 {[%emt 0:00:00]} c5 {[%emt 0:00:00]} 2. Nf3 {[%emt 0:00:00]} Nc6 {[%emt 0:00:00]} 3. g3 {[%emt 0:01:07]} Nf6 {[%emt 0:01:04]} 4. d3 {[%emt 0:00:28]} g6 {[%emt 0:03:01]} 5. Bg2 {[%emt 0:01:10]} Bg7 {[%emt 0:00:06]} 6. O-O {[%emt 0:00:08]} O-O {[%emt 0:00:07]} 7. Re1 d5 {[%emt 0:03:50]} 8. Nbd2 {[%emt 0:05:58]} dxe4 {[%emt 0:11:04]} 9. dxe4 {[%emt 0:00:23]} Qc7 {[%emt 0:00:09]} 10. c3 {[%emt 0:02:30]} Rd8 {[%emt 0:00:23]} 11. Qe2 {[%emt 0:07:25]} a5 {[%emt 0:02:48]} 12. a4 b6 {[%emt 0:03:19]} 13. Nc4 {[%emt 0:12:32]} e5 {[%emt 0:06:18]} 14. Na3 {[%emt 0:04:35]} Ba6 {[%emt 0:03:56]} 15. Nb5 {[%emt 0:00:08]} Qe7 {[%emt 0:01:18]} 16. Bg5 {[%emt 0:25:05]} h6 {[%emt 0:08:57]} 17. Bxf6 {[%emt 0:00:24]} Qxf6 {[%emt 0:00:09]} 18. Qc2 {[%emt 0:01:27]} Bxb5 {[%emt 0:05:34]} 19. axb5 {[%emt 0:00:09]} Na7 {[%emt 0:00:10]} 20. Qe2 {[%emt 0:11:05]} Rd6 {[%emt 0:06:09]} 21. Reb1 {[%emt 0:13:20]} Qe7 {[%emt 0:07:04]} 22. Bf1 {[%emt 0:00:40]} Qd7 {[%emt 0:16:04]} 23. Kg2 {[%emt 0:00:52]} Rc8 {[%emt 0:00:47]} 24. Qc4 {[%emt 0:00:07]} Rc7 {[%emt 0:02:28]} 25. Qa4 {[%emt 0:02:19]} Nc8 {[%emt 0:04:24]} 26. Bc4 {[%emt 0:02:09]} Qd8 {[%emt 0:04:07]} 27. Qc2 {[%emt 0:00:42]} Rdd7 {[%emt 0:01:00]} 28. Rd1 {[%emt 0:04:45]} Nd6 {[%emt 0:00:36]} 29. Nd2 {[%emt 0:01:27]} h5 {[%emt 0:02:07]} 30. Bd5 {[%emt 0:00:38]} Qf6 {[%emt 0:02:55]} 31. c4 {[%emt 0:01:46]} h4 {[%emt 0:00:50]} 32. Ra3 {[%emt 0:00:51]} g5 {[%emt 0:03:15]} 33. Rd3 {[%emt 0:00:51]} Qg6 {[%emt 0:00:46]} 34. Nf1 {[%emt 0:00:41]} Re7 {[%emt 0:01:37]} 35. Qe2 {[%emt 0:00:34]} Kh8 {[%emt 0:00:32]} 36. Qg4 {[%emt 0:01:04]} f5 {[%emt 0:00:15]} 37. exf5 {[%emt 0:00:04]} Qxf5 {[%emt 0:00:30]} 38. Qh5+ {[%emt 0:00:06]} Qh7 {[%emt 0:00:01]} 39. Qxg5 {[%emt 0:00:46]} e4 {[%emt 0:00:50]} 40. R3d2 {[%emt 0:00:04]} h3+ {[%emt 0:00:55]} 41. Kg1 {[%emt 0:00:06]} Ne8 {[%emt 0:00:01]} 42. Ne3 {[%emt 0:00:57]} Bh6 {[%emt 0:00:24]} 43. Qh4 {[%emt 0:00:10]} Bxe3 {[%emt 0:00:31]} 44. Qxh7+ {[%emt 0:00:05]} Kxh7 {[%emt 0:00:04]} 45. fxe3 {[%emt 0:00:05]} Nf6 {[%emt 0:00:01]} 46. Bc6 {[%emt 0:01:15]} Ng4 {[%emt 0:00:38]} 47. Re2 {[%emt 0:00:08]} Kg7 {[%emt 0:00:09]} 48. Rf1 {[%emt 0:00:45]} Ne5 {[%emt 0:00:38]} 49. Bxe4 {[%emt 0:00:06]} Nxc4 {[%emt 0:00:02]} 50. Rf4 {[%emt 0:00:10]} Rcd7 {[%emt 0:00:42]} 51. Kf2 {[%emt 0:00:11]} Rd6 {[%emt 0:01:13]} 52. g4 {[%emt 0:01:19]} Rf6 {[%emt 0:01:28]} 53. g5 {[%emt 0:00:43]} Rf8 {[%emt 0:00:21]} 54. Kg3 {[%emt 0:00:52]} Nd6 {[%emt 0:00:33]} 55. Bc6 {[%emt 0:00:27]} Nf5+ {[%emt 0:00:33]} 56. Kxh3 {[%emt 0:00:43]} Rh8+ {[%emt 0:00:32]} 57. Kg2 {[%emt 0:00:33]} Nxe3+ {[%emt 0:00:09]} 58. Kg1 {[%emt 0:00:22]} Rd8 {[%emt 0:00:57]} 59. Re4 {[%emt 0:00:07]} Rd1+ {[%emt 0:00:33]} 60. Kf2 {[%emt 0:00:05]} Rxe4 {[%emt 0:00:05]} 61. Bxe4 {[%emt 0:00:05]} Nc4 {[%emt 0:00:27]} 62. h4 {[%emt 0:00:09]} Rd4 {[%emt 0:01:00]} 63. h5 {[%emt 0:00:20]} Ne5 {[%emt 0:00:29]} 64. h6+ {[%emt 0:00:56]} Kf8 {[%emt 0:00:31]} 65. Kg3 {[%emt 0:00:09]} Nf7 {[%emt 0:00:25]} 66. Rf2 {[%emt 0:01:05]} Ke7 {[%emt 0:00:37]} 67. h7 {[%emt 0:00:06]} Nxg5 {[%emt 0:00:04]} 68. h8=Q {[%emt 0:02:03]} Nxe4+ {[%emt 0:00:05]} 69. Kg2 {[%emt 0:00:09]} Nxf2 {[%emt 0:00:04]} 70. Qg7+ {[%emt 0:00:05]} Ke6 {[%emt 0:01:45]} 71. Kxf2 {[%emt 0:00:37]} Rd6 {[%emt 0:00:06]} 72. Ke3 {[%emt 0:00:10]} Kd5 {[%emt 0:00:17]} 73. Qf7+ {[%emt 0:00:18]} Ke5 {[%emt 0:00:07]} 74. Qf4+ {[%emt 0:00:52]} Ke6 {[%emt 0:00:04]} 75. Qe4+ {[%emt 0:00:04]} Kd7 {[%emt 0:00:41]} 76. Kf3 {[%emt 0:00:22]} Kc7 {[%emt 0:01:11]} 77. Qa8 {[%emt 0:00:05]} Kd7 {[%emt 0:00:15]} 78. Ke4 {[%emt 0:00:08]} Ke6 {[%emt 0:00:04]} 79. Qe8+ {[%emt 0:00:05] Kd5+} 1-0

[Event "26th Abu Dhabi Master 2019"]
[Site "Abu Dhabi"]
[Date "2019.08.08"]
[Round "7.33"]
[White "Sadhwani, Raunak"]
[Black "Manush Shah"]
[Result "1-0"]
[ECO "B10"]
[WhiteElo "2477"]
[BlackElo "2373"]
[Annotator "ChessBase"]
[PlyCount "116"]
[EventDate "2019.08.02"]
[EventType "swiss"]
[EventCountry "UAE"]
[SourceTitle "playchess.com"]
[Source "ChessBase"]
[SourceQuality "1"]
[TimeControl "5400+30"]

1. e4 c6 2. Nc3 d5 3. Nf3 dxe4 4. Nxe4 Nf6 5. Qe2 Nxe4 6. Qxe4 Qd5 7. Qh4 Qe6+ 8. Be2 Qg4 9. Qg3 Qxg3 10. hxg3 Bf5 11. c3 Nd7 12. d4 h6 13. Bf4 e6 14. Nd2 Nb6 15. g4 Bg6 16. g5 f6 17. gxf6 gxf6 18. Nf3 Nd5 19. Bd2 O-O-O 20. O-O-O h5 21. Rh4 Be7 22. Rdh1 Rhg8 23. g3 Rdf8 24. R4h2 c5 25. Re1 cxd4 26. Nxd4 e5 27. Bc4 Rd8 28. Nc2 Rgf8 29. Ne3 Nb6 30. Be2 Na4 31. Bxh5 Bxh5 32. Rxh5 Nxb2 33. Kc2 Nd3 34. Rf1 Rd7 35. c4 Bc5 36. Rf5 Bxe3 37. Bxe3 Nb4+ 38. Kb3 Nc6 39. Rh1 Rd3+ 40. Kc2 Nb4+ 41. Kb2 b6 42. Rh6 Rd6 43. g4 Rc6 44. Kb3 Nd3 45. g5 Kd7 46. Rh7+ Ke6 47. Rxf6+ Rxf6 48. gxf6 Nc5+ 49. Bxc5 Rxc5 50. Rxa7 Kxf6 51. Ra6 Rc6 52. a4 Re6 53. c5 bxc5 54. Rxe6+ Kxe6 55. Kc4 Kd6 56. f3 Kc6 57. a5 Kd6 58. Kb5 Kd5 1-0

[Event "26th Abu Dhabi Master 2019"]
[Site "Abu Dhabi"]
[Date "2019.08.08"]
[Round "7.34"]
[White "Kulkarni, Rakesh"]
[Black "Arjun Kalyan"]
[Result "0-1"]
[ECO "D58"]
[WhiteElo "2360"]
[BlackElo "2482"]
[Annotator "ChessBase"]
[PlyCount "74"]
[EventDate "2019.08.02"]
[EventType "swiss"]
[EventCountry "UAE"]
[SourceTitle "playchess.com"]
[Source "ChessBase"]
[SourceQuality "1"]
[TimeControl "5400+30"]

1. d4 {[%emt 0:00:24]} d5 {[%emt 0:00:00]} 2. c4 {[%emt 0:00:05]} e6 {[%emt 0:00:35]} 3. Nc3 {[%emt 0:00:31]} Be7 {[%emt 0:00:31]} 4. Nf3 {[%emt 0:00:37]} Nf6 {[%emt 0:00:13]} 5. Bg5 {[%emt 0:00:28]} h6 {[%emt 0:00:44]} 6. Bh4 {[%emt 0:00:09]} O-O {[%emt 0:00:27]} 7. e3 {[%emt 0:00:06]} b6 {[%emt 0:00:46]} 8. Rc1 {[%emt 0:00:15]} Bb7 {[%emt 0:01:43]} 9. cxd5 {[%emt 0:00:19]} Nxd5 {[%emt 0:01:14]} 10. Bxe7 {[%emt 0:00:23]} Qxe7 {[%emt 0:00:04]} 11. Bd3 {[%emt 0:01:34]} c5 {[%emt 0:05:04]} 12. dxc5 {[%emt 0:04:48]} Rd8 {[%emt 0:01:29]} 13. Qe2 {[%emt 0:11:33]} Nd7 {[%emt 0:19:22]} 14. Nxd5 {[%emt 0:05:02]} Bxd5 {[%emt 0:00:07]} 15. e4 {[%emt 0:07:52]} Bb7 {[%emt 0:03:01]} 16. c6 {[%emt 0:10:25]} Rac8 {[%emt 0:01:01]} 17. Bb5 {[%emt 0:15:34]} Nb8 {[%emt 0:07:49]} 18. Ne5 {[%emt 0:03:39]} Qb4+ {[%emt 0:16:17]} 19. Rc3 {[%emt 0:00:57]} Nxc6 {[%emt 0:02:18]} 20. a3 {[%emt 0:10:20]} Qa5 {[%emt 0:07:37]} 21. Nxc6 {[%emt 0:19:44]} Bxc6 {[%emt 0:00:16]} 22. Bc4 {[%emt 0:01:34]} Rd4 {[%emt 0:02:42]} 23. O-O {[%emt 0:02:27]} Rxe4 {[%emt 0:01:00]} 24. Qc2 {[%emt 0:00:05]} Bb7 {[%emt 0:04:49]} 25. Rc1 {[%emt 0:01:44]} Qg5 {[%emt 0:01:45]} 26. Bf1 {[%emt 0:00:54]} Rxc3 {[%emt 0:00:12]} 27. Qxc3 {[%emt 0:00:05]} Rg4 {[%emt 0:00:46]} 28. f3 {[%emt 0:00:22]} Rf4 {[%emt 0:01:35]} 29. Qe3 {[%emt 0:01:24]} Bxf3 {[%emt 0:02:56]} 30. Rc8+ {[%emt 0:00:07]} Kh7 {[%emt 0:00:02]} 31. h4 {[%emt 0:00:06]} Qg4 {[%emt 0:00:48]} 32. Qd3+ {[%emt 0:01:56]} Be4 {[%emt 0:00:09]} 33. Qd8 {[%emt 0:00:06]} Qg3 {[%emt 0:04:36]} 34. Qg8+ {[%emt 0:00:51]} Kg6 {[%emt 0:00:02]} 35. h5+ {[%emt 0:00:06]} Kxh5 {[%emt 0:00:31]} 36. Rc3 {[%emt 0:00:50]} Qf2+ {[%emt 0:00:11]} 37. Kh2 {[%emt 0:00:04]} Rh4+ {[%emt 0:00:01]} 0-1

[Event "26th Abu Dhabi Master 2019"]
[Site "Abu Dhabi"]
[Date "2019.08.08"]
[Round "7.35"]
[White "Tahbaz, Arash"]
[Black "Kathmale, Sameer"]
[Result "1-0"]
[ECO "A49"]
[WhiteElo "2461"]
[BlackElo "2326"]
[Annotator "ChessBase"]
[PlyCount "49"]
[EventDate "2019.08.02"]
[EventType "swiss"]
[EventCountry "UAE"]
[SourceTitle "playchess.com"]
[Source "ChessBase"]
[SourceQuality "1"]
[TimeControl "5400+30"]

1. d4 Nf6 2. Nf3 g6 3. g3 c5 4. Bg2 cxd4 5. O-O Bg7 6. Nxd4 d5 7. c4 dxc4 8. Qa4+ Nbd7 9. Rd1 O-O 10. Qxc4 Qa5 11. Nc3 a6 12. h3 Qc5 13. Qxc5 Nxc5 14. Be3 Nfd7 15. Nd5 Bf6 16. Rac1 a5 17. Nxf6+ exf6 18. Nb5 Ne6 19. Rxc8 Raxc8 20. Rxd7 Rc2 21. Bd5 Rxb2 22. a4 Rxe2 23. Bxe6 fxe6 24. Bh6 Ra2 25. Nd6 1-0

[Event "26th Abu Dhabi Master 2019"]
[Site "Abu Dhabi"]
[Date "2019.08.08"]
[Round "7.36"]
[White "Samant Aditya S"]
[Black "Venkatesh, M.R."]
[Result "0-1"]
[ECO "C76"]
[WhiteElo "2296"]
[BlackElo "2480"]
[Annotator "ChessBase"]
[PlyCount "94"]
[EventDate "2019.08.02"]
[EventType "swiss"]
[EventCountry "UAE"]
[SourceTitle "playchess.com"]
[Source "ChessBase"]
[SourceQuality "1"]
[TimeControl "5400+30"]

1. e4 {[%emt 0:00:00]} e5 {[%emt 0:00:00]} 2. Nf3 {[%emt 0:00:00]} Nc6 {[%emt 0:00:00]} 3. Bb5 {[%emt 0:00:00]} a6 {[%emt 0:00:00]} 4. Ba4 {[%emt 0:00:00]} d6 {[%emt 0:00:02]} 5. c3 {[%emt 0:06:21]} Bd7 {[%emt 0:00:19]} 6. d4 {[%emt 0:00:58]} g6 {[%emt 0:00:07]} 7. O-O {[%emt 0:00:42]} Bg7 {[%emt 0:00:05]} 8. Be3 {[%emt 0:01:24]} Nf6 {[%emt 0:05:35]} 9. d5 {[%emt 0:01:50]} Ne7 {[%emt 0:00:21]} 10. Bxd7+ {[%emt 0:01:23]} Qxd7 {[%emt 0:00:08]} 11. Qc2 {[%emt 0:01:52]} h6 {[%emt 0:02:02]} 12. c4 {[%emt 0:00:40]} Ng4 {[%emt 0:15:01]} 13. Bd2 {[%emt 0:02:54]} f5 {[%emt 0:00:56]} 14. Nc3 {[%emt 0:00:33]} O-O {[%emt 0:01:52]} 15. Qd3 {[%emt 0:06:22]} Nf6 {[%emt 0:10:38]} 16. Ne1 {[%emt 0:12:39]} b5 {[%emt 0:22:58]} 17. f3 {[%emt 0:08:39]} b4 {[%emt 0:11:58]} 18. Nd1 {[%emt 0:08:54]} c5 {[%emt 0:02:39]} 19. dxc6 {[%emt 0:03:29]} Qxc6 {[%emt 0:00:41]} 20. Nf2 {[%emt 0:00:25]} a5 {[%emt 0:04:42]} 21. b3 {[%emt 0:04:32]} Nd7 {[%emt 0:03:07]} 22. Nc2 {[%emt 0:10:37]} Nc5 {[%emt 0:00:06]} 23. Qe2 {[%emt 0:00:30]} Rf7 {[%emt 0:00:21]} 24. Rfe1 {[%emt 0:04:47]} Raf8 {[%emt 0:03:52]} 25. Rab1 {[%emt 0:03:39]} g5 {[%emt 0:02:59]} 26. exf5 {[%emt 0:04:31]} Nxf5 {[%emt 0:00:18]} 27. Ne4 {[%emt 0:00:07]} g4 {[%emt 0:03:33]} 28. fxg4 {[%emt 0:03:00]} Nh4 {[%emt 0:00:09]} 29. Nxc5 {[%emt 0:05:24]} Rf2 {[%emt 0:01:45]} 30. Qe4 {[%emt 0:00:16]} Rxg2+ {[%emt 0:00:14]} 31. Kh1 {[%emt 0:00:06]} Qxc5 {[%emt 0:00:44]} 32. Be3 {[%emt 0:00:13]} Qc7 {[%emt 0:01:41]} 33. Rf1 {[%emt 0:04:47]} Qc8 {[%emt 0:00:07]} 34. h3 {[%emt 0:03:42]} Kh8 {[%emt 0:00:57]} 35. Rbd1 {[%emt 0:01:27]} Rxf1+ {[%emt 0:02:50]} 36. Rxf1 {[%emt 0:00:06]} d5 {[%emt 0:00:03]} 37. Qxd5 {[%emt 0:01:07]} Rxc2 {[%emt 0:00:05]} 38. Rf7 {[%emt 0:00:27]} Qg8 {[%emt 0:02:16]} 39. Qe6 {[%emt 0:00:18]} Qa8+ {[%emt 0:01:08]} 40. Qd5 {[%emt 0:00:06]} Qxd5+ {[%emt 0:00:05]} 41. cxd5 {[%emt 0:00:04]} Rc3 {[%emt 0:01:07]} 42. Bf2 {[%emt 0:00:48]} Rxh3+ {[%emt 0:00:08]} 43. Kg1 {[%emt 0:00:02]} Ng6 {[%emt 0:00:12]} 44. Ra7 {[%emt 0:00:19]} Rd3 {[%emt 0:01:26]} 45. Rxa5 {[%emt 0:00:06]} Nf4 {[%emt 0:00:04]} 46. Rb5 {[%emt 0:00:53]} Nxd5 {[%emt 0:00:09]} 47. Bc5 {[%emt 0:00:05]} e4 {[%emt 0:00:34]} 0-1

[Event "26th Abu Dhabi Master 2019"]
[Site "Abu Dhabi"]
[Date "2019.08.08"]
[Round "7.37"]
[White "Costachi, Mihnea"]
[Black "Krishnater Kushager"]
[Result "1/2-1/2"]
[ECO "E71"]
[WhiteElo "2471"]
[BlackElo "2324"]
[Annotator "ChessBase"]
[PlyCount "38"]
[EventDate "2019.08.02"]
[EventType "swiss"]
[EventCountry "UAE"]
[SourceTitle "playchess.com"]
[Source "ChessBase"]
[SourceQuality "1"]
[TimeControl "5400+30"]

1. d4 {[%emt 0:03:02]} Nf6 {[%emt 0:00:00]} 2. c4 {[%emt 0:00:09]} g6 {[%emt 0:00:00]} 3. Nc3 {[%emt 0:00:48]} Bg7 {[%emt 0:00:00]} 4. e4 {[%emt 0:00:03]} d6 {[%emt 0:00:00]} 5. h3 {[%emt 0:00:21]} O-O {[%emt 0:00:01]} 6. Be3 {[%emt 0:00:21]} c6 {[%emt 0:00:04]} 7. Nf3 {[%emt 0:00:59]} Na6 {[%emt 0:00:09]} 8. Be2 {[%emt 0:01:15]} e5 {[%emt 0:00:11]} 9. O-O {[%emt 0:00:54]} exd4 {[%emt 0:02:55]} 10. Nxd4 {[%emt 0:12:03]} Re8 {[%emt 0:01:37]} 11. Bf3 {[%emt 0:01:13]} Nc5 {[%emt 0:09:29]} 12. Qc2 {[%emt 0:02:57]} Qe7 {[%emt 0:03:24]} 13. Rfe1 {[%emt 0:11:36]} Bd7 {[%emt 0:00:17]} 14. Rad1 {[%emt 0:05:12]} Nfxe4 {[%emt 0:12:25]} 15. Bxe4 {[%emt 0:17:54]} Nxe4 {[%emt 0:00:47]} 16. Bc1 {[%emt 0:04:16]} f5 {[%emt 0:00:31]} 17. f3 {[%emt 0:10:07]} Qh4 {[%emt 0:06:19]} 18. Nxe4 {[%emt 0:00:04]} Bxd4+ {[%emt 0:00:18]} 19. Kf1 {[%emt 0:00:06]} fxe4 {[%emt 0:07:05]} 1/2-1/2